fUSD/lending_fUSD_20250708
["ID","MTS","AMOUNT","RATE_DAILY","PERIOD"]
[370312456,1751947851985,-150.0,0.0003041,7]
[370312457,1751947851996,-150.0,0.0003041,7]
[370312458,1751947852005,-150.0,0.0003041,7]
[370312459,1751947852015,-450.19,0.0003041,7]
[370312460,1751947852026,-460.0,0.0003041,7]
[370312461,1751947852036,-150.90360646,0.0003041,7]
[370312462,1751947852046,-614.7,0.0003041,7]
[370312463,1751947852057,-460.0,0.0003041,7]
[370312464,1751947852069,-916.19,0.0003041,7]
[370312465,1751947852079,-461.57045694,0.00030426,3]
[370312466,1751947852089,-5371.16801,0.00030441,2]
[370312467,1751947852099,-5070.657328,0.0003045,120]
[370312468,1751947852109,-500.0,0.00030473,5]
[370312469,1751947852119,-500.0,0.00030473,5]
[370312470,1751947852129,-501.05060176,0.00030473,5]
[370312471,1751947852141,-500.0,0.00030473,5]
[370312472,1751947852152,-160.01209699,0.00030473,5]
[370312473,1751947852162,-500.0,0.00030473,5]
[370312474,1751947852172,-559.21507305,0.00030473,5]
[370312475,1751947852181,-1000.0,0.000305,2]
[370312476,1751947852193,-311.1,0.00030515,2]
[370312477,1751947852203,-215.0738,0.00030515,2]
[370312478,1751947852212,-6218.5694706,0.00030548,2]
[370312479,1751947852223,-461.57045694,0.00030552,3]
[370312480,1751947852233,-151.0,0.00030584,7]
[370312481,1751947852243,-151.0,0.00030584,7]
[370312482,1751947852253,-1676.34773954,0.00030584,2]
[370312483,1751947852263,-11354.14316626,0.00030584,2]
[370312484,1751947852272,-600.0,0.000306,11]
[370312485,1751947852282,-1000.0,0.000306,2]
[370312486,1751947852292,-1000.0,0.000306,2]
[370312487,1751947852302,-350.0,0.00030611,2]
[370312488,1751947852312,-243.28963931,0.00030642,2]
[370312489,1751947852321,-151.0,0.00030642,2]
[370312490,1751947852331,-151.0,0.00030642,2]
[370312491,1751947852341,-6247.73811349,0.00030645,2]
[370312492,1751947852351,-151.0,0.00030645,7]
[370312493,1751947852360,-151.0,0.00030645,7]
[370312494,1751947852370,-151.0,0.00030645,7]
[370312495,1751947852380,-153.92309,0.00030645,7]
[370312496,1751947852389,-166.265388,0.00030645,7]
[370312497,1751947852399,-153.92309,0.00030645,7]
[370312498,1751947852409,-151.549351,0.00030645,7]
[370312499,1751947852420,-166.265388,0.00030645,7]
[370312500,1751947852429,-152.872685,0.00030645,7]
[370312501,1751947852439,-155.664061,0.00030645,7]
[370312502,1751947852450,-152.155013,0.00030645,7]
[370312503,1751947852461,-151.0,0.0003065,7]
[370312504,1751947852472,-151.0,0.0003065,7]
[370312505,1751947852483,-159.925876,0.0003065,7]
[370312506,1751947852494,-159.925876,0.0003065,7]
[370312507,1751947852503,-151.0,0.0003065,7]
[370312508,1751947852513,-151.0,0.0003065,7]
[370312509,1751947852523,-151.0,0.0003065,7]
[370312510,1751947852533,-151.0,0.0003065,7]
[370312511,1751947852542,-151.0,0.0003065,7]
[370312512,1751947852552,-151.0,0.0003065,7]
[370312513,1751947852561,-152.232009,0.0003065,7]
[370312514,1751947852571,-151.0,0.0003065,7]
[370312515,1751947852581,-212.342786,0.0003065,7]
[370312516,1751947852591,-212.342786,0.0003065,7]
[370312517,1751947852600,-44093.1834277,0.0003065,2]
[370312518,1751947852610,-151.0,0.0003065,7]
[370312519,1751947852620,-2281.144637,0.0003065,7]
[370312520,1751947852629,-2281.144637,0.0003065,7]
[370312521,1751947852639,-151.0,0.0003065,7]
[370312522,1751947852648,-151.0,0.0003065,7]
[370312523,1751947852658,-2329.3264603,0.0003065,2]
[370312524,1751947852667,-524.153661,0.0003065,7]
[370312525,1751947852677,-524.153661,0.0003065,7]
[370312526,1751947852687,-151.0,0.0003065,7]
[370312527,1751947852697,-151.0,0.0003065,7]
[370312528,1751947852708,-151.0,0.0003065,7]
[370312529,1751947852717,-151.0,0.0003065,7]
[370312530,1751947852726,-274.162603,0.0003065,7]
[370312531,1751947852736,-151.0,0.0003065,7]
[370312532,1751947852745,-151.0,0.0003065,7]
[370312533,1751947852754,-274.162603,0.0003065,7]
[370312534,1751947852764,-551.252414,0.0003065,7]
[370312535,1751947852773,-551.252414,0.0003065,7]
[370312536,1751947852782,-151.0,0.0003065,7]
[370312537,1751947852792,-151.0,0.0003065,7]
[370312538,1751947852801,-151.0,0.0003065,7]
[370312539,1751947852811,-151.0,0.0003065,7]
[370312540,1751947852820,-151.0,0.0003065,7]
[370312541,1751947852830,-151.0,0.0003065,7]
[370312542,1751947852840,-151.0,0.0003065,7]
[370312543,1751947852849,-151.0,0.0003065,7]
[370312544,1751947852859,-151.0,0.0003065,7]
[370312545,1751947852868,-151.0,0.0003065,7]
[370312546,1751947852878,-803.276558,0.0003065,7]
[370312547,1751947852888,-151.0,0.0003065,7]
[370312548,1751947852897,-151.0,0.0003065,7]
[370312549,1751947852907,-803.276558,0.0003065,7]
[370312550,1751947852917,-151.0,0.0003065,7]
[370312551,1751947852926,-151.0,0.0003065,7]
[370312552,1751947852937,-151.0,0.0003065,7]
[370312553,1751947852946,-151.0,0.0003065,7]
[370312554,1751947852956,-151.0,0.0003065,7]
[370312555,1751947852967,-151.0,0.0003065,7]
[370312556,1751947852977,-530.026691,0.0003065,7]
[370312557,1751947852987,-530.026691,0.0003065,7]
[370312558,1751947852997,-455.943459,0.0003065,7]
[370312559,1751947853006,-455.943459,0.0003065,7]
[370312560,1751947853017,-1315.146434,0.0003065,7]
[370312561,1751947853028,-151.0,0.0003065,7]
[370312562,1751947853038,-1315.146434,0.0003065,7]
[370312563,1751947853048,-151.0,0.0003065,7]
[370312564,1751947853058,-13401.59811102,0.00030652,26]
[370312565,1751947853068,-1398030.13888625,0.00030652,26]
[370312566,1751947853078,-152625.1326472,0.00030652,2]
[370312567,1751947853088,-151.0,0.00030652,7]
[370312568,1751947853098,-151.0,0.00030652,7]
[370312569,1751947853108,-151.0,0.00030652,7]
[370312570,1751947853119,-151.0,0.00030652,7]
[370312571,1751947853129,-151.0,0.00030652,7]
[370312572,1751947853138,-151.0,0.00030652,7]
[370312573,1751947853152,-151.0,0.00030652,7]
[370312574,1751947853161,-151.0,0.00030652,7]
[370312575,1751947853171,-81574.1881972,0.00030652,2]
[370312576,1751947853181,-151.0,0.00030652,7]
[370312577,1751947853191,-151.0,0.00030652,7]
[370312578,1751947853201,-23569.5937491,0.00030652,2]
[370312579,1751947853211,-151.0,0.00030652,7]
[370312580,1751947853221,-48838.3275342,0.00030652,2]
[370312581,1751947853231,-151.0,0.00030652,7]
[370312582,1751947853241,-151.0,0.00030652,7]
[370312583,1751947853251,-153.92309,0.00030652,7]
[370312584,1751947853261,-166.265388,0.00030652,7]
[370312585,1751947853270,-153.92309,0.00030652,7]
[370312586,1751947853280,-166.265388,0.00030652,7]
[370312587,1751947853290,-151.0,0.00030652,7]
[370312588,1751947853300,-151.0,0.00030652,7]
[370312589,1751947853310,-151.0,0.00030652,7]
[370312590,1751947853320,-151.0,0.00030652,7]
[370312591,1751947853329,-666.0,0.00030656,10]
[370312592,1751947853339,-311.01437501,0.00030656,10]
[370312593,1751947853349,-274.162603,0.00030657,7]
[370312594,1751947853359,-154.326757,0.00030657,7]
[370312595,1751947853369,-151.0,0.00030657,7]
[370312596,1751947853379,-274.162603,0.00030657,7]
[370312597,1751947853390,-151.0,0.00030657,7]
[370312598,1751947853400,-151.0,0.00030657,7]
[370312599,1751947853596,-151.0,0.00030657,7]
[370312600,1751947853605,-151.0,0.00030657,7]
[370312601,1751947853615,-151.0,0.00030657,7]
[370312602,1751947853625,-151.0,0.00030657,7]
[370312603,1751947853637,-151.0,0.00030657,7]
[370312604,1751947853647,-151.0,0.00030657,7]
[370312605,1751947853658,-151.0,0.00030657,7]
[370312606,1751947853667,-155.129621,0.00030657,7]
[370312607,1751947853679,-151.0,0.00030657,7]
[370312608,1751947853690,-151.0,0.00030657,7]
[370312609,1751947853699,-530.026691,0.00030657,7]
[370312610,1751947853708,-530.026691,0.00030657,7]
[370312611,1751947853719,-455.943459,0.00030657,7]
[370312612,1751947853728,-455.943459,0.00030657,7]
[370312613,1751947853738,-151.0,0.00030657,7]
[370312614,1751947853748,-151.0,0.00030657,7]
[370312615,1751947853757,-40111.0,0.00030658,2]
[370312616,1751947853766,-159.05,0.00030659,2]
[370312617,1751947853775,-168.0,0.0003066,7]
[370312618,1751947853785,-500.0,0.00030673,5]
[370312619,1751947853794,-460.0,0.00030673,7]
[370312620,1751947853803,-460.0,0.00030673,7]
[370312621,1751947853812,-369.52965492,0.00030673,7]
[370312622,1751947853822,-471.05965424,0.00030673,7]
[370312623,1751947853831,-520.0,0.00030673,7]
[370312624,1751947853840,-460.0,0.00030673,7]
[370312625,1751947853850,-460.0,0.00030673,7]
[370312626,1751947853859,-460.0,0.00030673,7]
[370312627,1751947853868,-460.0,0.00030673,7]
[370312628,1751947853878,-460.0,0.00030673,7]
[370312629,1751947853887,-768.17,0.00030673,7]
[370312630,1751947853896,-528.92,0.00030673,7]
[370312631,1751947853905,-766.37,0.00030673,7]
[370312632,1751947853914,-460.0,0.00030673,7]
[370312633,1751947853924,-917.13,0.00030673,7]
[370312634,1751947853933,-460.0,0.00030673,7]
[370312635,1751947853943,-674.93,0.00030673,7]
[370312636,1751947853952,-1026.22,0.00030673,7]
[370312637,1751947853961,-460.0,0.00030673,7]
[370312638,1751947853971,-2606.7,0.00030673,7]
[370312639,1751947853982,-668.27,0.00030673,7]
[370312640,1751947853991,-460.0,0.00030673,7]
[370312641,1751947854002,-1535.43,0.00030673,7]
[370312642,1751947854012,-2160.69,0.00030673,7]
[370312643,1751947854022,-460.0,0.00030673,7]
[370312644,1751947854033,-1586.47,0.00030673,7]
[370312645,1751947854043,-460.0,0.00030673,7]
[370312646,1751947854054,-1764.78,0.00030673,7]
[370312647,1751947854063,-460.0,0.00030673,7]
[370312648,1751947854074,-643.86,0.00030673,7]
[370312649,1751947854084,-460.0,0.00030673,7]
[370312650,1751947854095,-460.0,0.00030673,7]
[370312651,1751947854105,-764.94,0.00030673,7]
[370312652,1751947854116,-2278.62,0.00030673,7]
[370312653,1751947854126,-1451.67,0.00030673,7]
[370312654,1751947854136,-460.0,0.00030673,7]
[370312655,1751947854148,-460.0,0.00030673,7]
[370312656,1751947854158,-460.0,0.00030673,7]
[370312657,1751947854168,-460.0,0.00030673,7]
[370312658,1751947854178,-460.0,0.00030673,7]
[370312659,1751947854187,-831.54,0.00030673,7]
[370312660,1751947854199,-460.0,0.00030673,7]
[370312661,1751947854209,-755.57,0.00030673,7]
[370312662,1751947854221,-941.56,0.00030673,7]
[370312663,1751947854231,-13081.33,0.00030673,7]
[370312664,1751947854241,-460.0,0.00030673,7]
[370312665,1751947854251,-1254.79,0.00030673,7]
[370312666,1751947854262,-2299.78,0.00030673,7]
[370312667,1751947854271,-5000.0,0.00030682,7]
[370312668,1751947854281,-300.0,0.00030683,10]
[370312669,1751947854291,-267.1837843,0.00030683,10]
[370312670,1751947854300,-666.0,0.00030683,10]
[370312671,1751947854310,-460.0,0.00030683,7]
[370312672,1751947854320,-288.39215935,0.00030683,7]
[370312673,1751947854329,-460.0,0.00030683,7]
[370312674,1751947854339,-460.0,0.00030683,7]
[370312675,1751947854348,-460.0,0.00030683,7]
[370312676,1751947854357,-460.0,0.00030683,7]
[370312677,1751947854367,-500.0,0.00030683,7]
[370312678,1751947854376,-500.0,0.00030683,7]
[370312679,1751947854385,-500.0,0.00030683,7]
[370312680,1751947854395,-842.72,0.00030683,7]
[370312681,1751947854405,-500.0,0.00030684,7]
[370312682,1751947854414,-150.0,0.00030684,7]
[370312683,1751947854425,-152.3101411,0.00030684,7]
[370312684,1751947854434,-500.0,0.00030684,7]
[370312685,1751947854443,-150.0,0.00030684,7]
[370312686,1751947854453,-500.0,0.00030684,7]
[370312687,1751947854462,-150.0,0.00030684,7]
[370312688,1751947854471,-500.0,0.00030684,7]
[370312689,1751947854481,-150.0,0.00030684,7]
[370312690,1751947854490,-500.0,0.00030684,7]
[370312691,1751947854499,-500.0,0.00030684,7]
[370312692,1751947854510,-150.0,0.00030684,7]
[370312693,1751947854519,-500.0,0.00030684,7]
[370312694,1751947854528,-746.0,0.00030684,7]
[370312695,1751947854538,-150.0,0.00030684,7]
[370312696,1751947854547,-150.0,0.00030684,7]
[370312697,1751947854556,-504.62178285,0.00030684,7]
[370312698,1751947854566,-500.0,0.00030684,7]
[370312699,1751947854575,-668.0,0.00030684,7]
[370312700,1751947854584,-500.0,0.00030684,2]
[370312701,1751947854593,-965.0,0.00030684,7]
[370312702,1751947854603,-152.36898419,0.00030684,7]
[370312703,1751947854612,-500.0,0.00030684,2]
[370312704,1751947854621,-500.0,0.00030684,60]
[370312705,1751947854631,-150.94374643,0.00030684,7]
[370312706,1751947854640,-153.1627685,0.00030684,7]
[370312707,1751947854650,-206.23859216,0.00030684,7]
[370312708,1751947854659,-151.0,0.00030684,7]
[370312709,1751947854669,-151.0,0.00030684,7]
[370312710,1751947854679,-154.968275,0.00030684,7]
[370312711,1751947854688,-460.0,0.00030684,7]
[370312712,1751947854697,-460.0,0.00030684,7]
[370312713,1751947854707,-250.01,0.00030684,7]
[370312714,1751947854717,-252.53778551,0.00030684,7]
[370312715,1751947854726,-460.0,0.00030684,7]
[370312716,1751947854736,-460.0,0.00030684,7]
[370312717,1751947854745,-191.76166382,0.00030684,7]
[370312718,1751947854755,-460.0,0.00030684,7]
[370312719,1751947854764,-460.0,0.00030684,7]
[370312720,1751947854773,-460.0,0.00030684,7]
[370312721,1751947854783,-460.0,0.00030684,7]
[370312722,1751947854793,-209.83953653,0.00030684,7]
[370312723,1751947854802,-460.0,0.00030684,7]
[370312724,1751947854812,-460.0,0.00030684,7]
[370312725,1751947854825,-460.0,0.00030684,7]
[370312726,1751947854835,-460.0,0.00030684,7]
[370312727,1751947854844,-305.85073265,0.00030684,7]
[370312728,1751947854853,-460.0,0.00030684,7]
[370312729,1751947854862,-460.0,0.00030684,7]
[370312730,1751947854872,-460.0,0.00030684,7]
[370312731,1751947854881,-460.0,0.00030684,7]
[370312732,1751947854890,-460.0,0.00030684,7]
[370312733,1751947854900,-598.17,0.00030684,7]
[370312734,1751947854909,-460.0,0.00030684,7]
[370312735,1751947854918,-460.0,0.00030684,7]
[370312736,1751947854929,-460.0,0.00030684,7]
[370312737,1751947854938,-460.0,0.00030684,7]
[370312738,1751947854948,-460.0,0.00030684,7]
[370312739,1751947854957,-714.2,0.00030684,7]
[370312740,1751947854967,-460.0,0.00030684,7]
[370312741,1751947854976,-460.0,0.00030684,7]
[370312742,1751947854985,-544.16,0.00030684,7]
[370312743,1751947854995,-460.0,0.00030684,7]
[370312744,1751947855004,-460.0,0.00030684,7]
[370312745,1751947855014,-460.0,0.00030684,7]
[370312746,1751947855023,-678.26,0.00030684,7]
[370312747,1751947855033,-460.0,0.00030684,7]
[370312748,1751947855042,-460.0,0.00030684,7]
[370312749,1751947855051,-460.0,0.00030684,7]
[370312750,1751947855060,-460.0,0.00030684,7]
[370312751,1751947855069,-665.23,0.00030684,7]
[370312752,1751947855079,-460.0,0.00030684,7]
[370312753,1751947855088,-594.39,0.00030684,7]
[370312754,1751947855097,-584.96,0.00030684,7]
[370312755,1751947855106,-460.0,0.00030684,7]
[370312756,1751947855115,-460.0,0.00030684,7]
[370312757,1751947855125,-460.0,0.00030684,7]
[370312758,1751947855134,-460.0,0.00030684,7]
[370312759,1751947855146,-472.19378128,0.00030684,7]
[370312760,1751947855156,-460.0,0.00030684,7]
[370312761,1751947855165,-589.76,0.00030684,7]
[370312762,1751947855174,-460.0,0.00030684,7]
[370312763,1751947855183,-460.0,0.00030684,7]
[370312764,1751947855193,-653.29,0.00030684,7]
[370312765,1751947855202,-460.0,0.00030684,7]
[370312766,1751947855213,-768.22,0.00030684,7]
[370312767,1751947855222,-429.45515972,0.00030684,7]
[370312768,1751947855231,-460.0,0.00030684,7]
[370312769,1751947855240,-460.0,0.00030684,7]
[370312770,1751947855250,-460.0,0.00030684,7]
[370312771,1751947855260,-460.0,0.00030684,7]
[370312772,1751947855270,-737.73,0.00030684,7]
[370312773,1751947855280,-460.0,0.00030684,7]
[370312774,1751947855289,-460.0,0.00030684,7]
[370312775,1751947855299,-419.80974537,0.00030684,7]
[370312776,1751947856125,-179.71032955,0.00030036,2]
[370312777,1751947856135,-1122.25100741,0.00030176,2]
[370312778,1751947856147,-151.0,0.00030584,7]
[370312779,1751947856156,-151.0,0.00030584,7]
[370312780,1751947856166,-151.0,0.00030652,7]
[370312781,1751947856175,-204.449422,0.00030652,7]
[370312782,1751947856184,-40.19025463,0.00030684,7]
[370312783,1751947856194,-476.65,0.00030684,7]
[370312784,1751947856204,-312.14418342,0.00030684,7]
[370312785,1751947856213,-460.0,0.00030684,7]
[370312786,1751947856224,-716.44,0.00030684,7]
[370312787,1751947856235,-460.0,0.00030684,7]
[370312788,1751947856245,-351.69493088,0.00030684,7]
[370312789,1751947856254,-334.40534026,0.00030684,7]
[370312790,1751947856478,-460.0,0.00030136,7]
[370312791,1751947856487,-460.0,0.00030136,7]
[370312792,1751947856497,-151.0,0.00030652,7]
[370312793,1751947856506,-188.949897,0.00030652,7]
[370312794,1751947856515,-178.61465974,0.00030684,7]
[370312795,1751947856524,-299.003619,0.00030684,7]
[370312796,1751947856533,-517.84,0.00030684,7]
[370312797,1751947856542,-150.56121079,0.00030684,7]
[370312798,1751947856589,-114.41256921,0.00030684,7]
[370312799,1751947856598,-235.58743079,0.00030684,7]
[370312801,1751948158642,212.62,0.00029493,120]
[370312804,1751948453099,155.7,0.00013699,2]
[370312805,1751948464701,-150.0,0.000181,2]
[370312806,1751948500121,-150.0,0.0001859,2]
[370312807,1751948568914,-150.0,0.0001907,2]
[370312854,1751949031489,-339.64,0.0001399,2]
[370312855,1751949031499,-339.64,0.0001399,2]
[370312856,1751949031509,-339.64,0.0001399,2]
[370312857,1751949031518,-339.64,0.0001399,2]
[370312858,1751949031528,-339.64,0.0001399,2]
[370312859,1751949031538,-500.06405291,0.00013999,2]
[370312860,1751949031547,-302.80658658,0.00013999,2]
[370312861,1751949031559,-197.19341342,0.00013999,2]
[370312862,1751949031568,-250.83180316,0.00013999,2]
[370312863,1751949031577,-500.0,0.00013999,2]
[370312864,1751949031587,-356.07495291,0.00013999,2]
[370312865,1751949031597,-24.93220371,0.00013999,2]
[370313402,1751949037513,-324.83722895,0.00013999,2]
[370313403,1751949037623,-150.23056734,0.00013999,2]
[370313404,1751949037633,-345.07735854,0.00013999,2]
[370313405,1751949037643,-41334.17632869,0.00014,2]
[370313406,1751949037653,-446654.24173332,0.00014,2]
[370313407,1751949037663,-250.0,0.00015,2]
[370313408,1751949037673,-168.94,0.00016712,2]
[370313409,1751949037683,-250.51599087,0.00018497,2]
[370313410,1751949037693,-20.0,0.0001907,2]
[370313411,1751949037702,-3602.34029696,0.000192,2]
[370313412,1751949037712,-3602.34029684,0.000192,2]
[370313413,1751949037721,-3602.34029684,0.000192,2]
[370313414,1751949037731,-3602.34029684,0.000192,2]
[370313415,1751949037741,-3602.34029684,0.000192,2]
[370313416,1751949037751,-151.0,0.00019576,2]
[370313417,1751949037761,-3602.34029684,0.00020245,2]
[370313418,1751949037771,-37475.1268465,0.00021,3]
[370313419,1751949037782,-172.26941916,0.00021,3]
[370313420,1751949037792,-3602.34029684,0.00021314,5]
[370313421,1751949037802,-3602.34029684,0.00022383,7]
[370313422,1751949037812,-505.36285136,0.000229,2]
[370313423,1751949037822,-500.0,0.000229,2]
[370313424,1751949037832,-500.0,0.000229,2]
[370313425,1751949037842,-501.76296815,0.000229,2]
[370313426,1751949037851,-506.56804966,0.000229,2]
[370313427,1751949037861,-163.24311829,0.000229,2]
[370313428,1751949037871,-500.0,0.000229,2]
[370313429,1751949037880,-164.66,0.00023103,2]
[370313430,1751949037891,-502.25392725,0.00023448,2]
[370313431,1751949037900,-504.09242342,0.00023448,2]
[370313432,1751949037909,-504.0578053,0.00023448,2]
[370313434,1751949037919,-3602.34029684,0.00023452,9]
[370313436,1751949037929,-5000.0,0.00024,5]
[370313438,1751949037939,-3602.34029684,0.00024521,11]
[370313440,1751949037949,-1415.0,0.000246,5]
[370313442,1751949037959,-28917.2252414,0.000248,2]
[370313444,1751949037969,-3602.34029684,0.0002559,13]
[370313446,1751949037979,-590.19284475,0.00026189,2]
[370313448,1751949037989,-513.0,0.00026657,2]
[370313449,1751949037998,-3602.34029684,0.00026659,15]
[370313450,1751949038008,-200.0,0.00027452,2]
[370313451,1751949038018,-227.0,0.0002747,2]
[370313452,1751949038028,-3602.34029684,0.00027728,17]
[370313453,1751949038038,-513.0,0.00027991,4]
[370313454,1751949038047,-227.0,0.0002842,2]
[370313455,1751949038057,-3055.0,0.00028767,7]
[370313456,1751949038067,-3064.0,0.00028767,7]
[370313457,1751949038077,-3602.34029684,0.00028797,19]
[370313458,1751949038086,-151.3,0.00028831,2]
[370313459,1751949038096,-200.0,0.00028843,7]
[370313460,1751949038106,-785.57570532,0.00028863,2]
[370313461,1751949038116,-15585.0,0.00028925,2]
[370313462,1751949038125,-4974.85557648,0.00028963,2]
[370313463,1751949038135,-785.57570518,0.00029069,2]
[370313465,1751949038145,-952.89215481,0.00029069,3]
[370313467,1751949038155,-155.7,0.0002911,2]
[370313469,1751949038164,-926.38,0.00029241,2]
[370313471,1751949038174,-785.57570518,0.00029275,2]
[370313473,1751949038184,-513.0,0.00029324,6]
[370313475,1751949038194,-227.0,0.0002937,2]
[370313477,1751949038204,-435.09,0.00029398,2]
[370313479,1751949038214,-785.57570518,0.00029481,2]
[370313481,1751949038225,-1000.0,0.00029492,2]
[370313483,1751949038235,-154.04,0.0002952,2]
[370313485,1751949038245,-4974.85557648,0.0002962,2]
[370313487,1751949038254,-785.57570518,0.00029686,2]
[370313489,1751949038265,-210.34477682,0.00029713,2]
[370313491,1751949038275,-250.0,0.00029717,2]
[370313493,1751949038285,-1000.0,0.00029863,14]
[370313495,1751949038295,-1000.0,0.00029863,14]
[370313497,1751949038305,-1000.0,0.00029863,14]
[370313499,1751949038314,-1000.0,0.00029863,14]
[370313501,1751949038324,-1000.0,0.00029863,14]
[370313503,1751949038334,-1000.0,0.00029863,14]
[370313505,1751949038343,-810.30087774,0.00029863,14]
[370313507,1751949038353,-3602.34029684,0.00029866,21]
[370313509,1751949038363,-3384.51649978,0.00029891,2]
[370313511,1751949038372,-785.57570518,0.00029892,2]
[370313513,1751949038382,-927.5338,0.00029918,2]
[370313516,1751949038392,-1000.0,0.00029918,2]
[370313518,1751949038401,-150.0,0.00029988,2]
[370313520,1751949038411,-300.0,0.00030018,2]
[370313522,1751949038420,-2778.0,0.00030018,2]
[370313524,1751949038430,-207.4,0.00030018,2]
[370313526,1751949038440,-151.0,0.00030018,2]
[370313528,1751949038449,-151.0,0.00030018,2]
[370313530,1751949038459,-151.0,0.00030018,2]
[370313532,1751949038470,-151.0,0.00030018,2]
[370313534,1751949038480,-151.0,0.00030018,2]
[370313536,1751949038489,-151.0,0.00030018,2]
[370313537,1751949038500,-300.0,0.00030018,2]
[370313540,1751949038511,-151.0,0.00030018,2]
[370313542,1751949038521,-300.0,0.00030018,2]
[370313544,1751949038531,-151.0,0.00030018,2]
[370313546,1751949038541,-400.0,0.00030018,2]
[370313548,1751949038551,-151.0,0.00030018,2]
[370313550,1751949038561,-151.0,0.00030018,2]
[370313552,1751949038571,-151.0,0.00030018,2]
[370313554,1751949038581,-151.0,0.00030018,2]
[370313556,1751949038591,-151.0,0.00030018,2]
[370313558,1751949038601,-151.0,0.00030018,2]
[370313560,1751949038611,-14202.7529,0.00030036,2]
[370313562,1751949038621,-785.57570518,0.00030098,2]
[370313564,1751949038630,-1020.0,0.000301,2]
[370313566,1751949038640,-3473156.64072219,0.00030128,3]
[370313668,1751949039570,-641.01223463,0.00030128,3]
[370313688,1751949039747,-1045486.29980655,0.00030128,3]
[370313717,1751949040019,-618.64928,0.00030128,3]
[370313977,1751949042730,-697.07100368,0.00030036,2]
[370313985,1751949042790,-937.84555033,0.00030036,2]
[370313987,1751949042802,-710.25984599,0.00030036,2]
[370313989,1751949042811,-40.23238402,0.00030128,3]
[370314002,1751949042913,-800.82437286,0.00030128,3]
[370314273,1751949045598,-13871.17035695,0.00030128,3]
[370314275,1751949045610,-14553.77146054,0.00030128,3]
[370314997,1751949137966,192.01,0.00029283,120]
[370314999,1751949549814,151.36,0.00013699,2]
[370315049,1751949610157,200.2000891,0.00013833,2]
[370315051,1751949931652,182.71539364,0.00027534,120]
[370315064,1751950231729,-300.0,0.00016256,2]
[370315065,1751950231739,-500.0,0.00023863,2]
[370315066,1751950231749,-30.57206873,0.00026658,2]
[370315067,1751950231877,-475.42793127,0.00026658,2]
[370315068,1751950231887,-181.00468291,0.00027324,2]
[370315069,1751950231910,-331.99531709,0.00027324,2]
[370315071,1751950232114,-600.0,0.00027397,2]
[370315072,1751950232124,-600.0,0.00027397,2]
[370315073,1751950232134,-463.75348518,0.00027397,2]
[370315074,1751950232146,-30.12254395,0.00027397,2]
[370315075,1751950232156,-151.36,0.00027397,2]
[370315076,1751950232165,-600.0,0.00027497,2]
[370315078,1751950232175,-416.32561748,0.00027497,2]
[370315080,1751950232185,-600.0,0.00027597,2]
[370315082,1751950232194,-210.34477682,0.00027978,2]
[370315084,1751950232204,-300.0,0.00028008,2]
[370315086,1751950232214,-837.09214054,0.00028009,2]
[370315088,1751950232223,-378.96983575,0.00028517,2]
[370315090,1751950232232,-1000.0,0.00028576,2]
[370315092,1751950232241,-2434.0,0.00028598,2]